[Event "Titled Tuesday Blitz November 22 Early 2022"]
[White "Begunov, Konstantin"]
[Black "Shapiro, Daniel"]
[WhiteFideId "4118510"]
[BlackFideId "2001780"]
[WhiteElo "2140"]
[BlackElo "2311"]
[Result "1-0"]
[Round "10"]
[TimeControl "180+1"]
[Date "2022.11.23"]
[WhiteClock "0:00:11"]
[BlackClock "0:00:01"]

1. d4 {[%clk 0:03:00]}  Nf6 {[%clk 0:02:59]} 2. c4 {[%clk 0:03:01]}  e6 {[%clk 0:02:59]} 3. Nf3 {[%clk 0:03:00]}  d5 {[%clk 0:02:58]} 4. Nc3 {[%clk 0:03:00]}  Bb4 {[%clk 0:02:58]} 5. Qa4+ {[%clk 0:02:59]}  Nc6 {[%clk 0:02:57]} 6. Ne5 {[%clk 0:02:59]}  a5 {[%clk 0:02:43]} 7. Nxc6 {[%clk 0:02:46]}  bxc6 {[%clk 0:02:43]} 8. a3 {[%clk 0:02:27]}  Be7 {[%clk 0:02:25]} 9. Bg5 {[%clk 0:02:18]}  Bd7 {[%clk 0:02:20]} 10. Qc2 {[%clk 0:01:57]}  O-O {[%clk 0:02:06]} 11. e3 {[%clk 0:01:56]}  h6 {[%clk 0:01:53]} 12. Bh4 {[%clk 0:01:56]}  c5 {[%clk 0:01:41]} 13. dxc5 {[%clk 0:01:48]}  dxc4 {[%clk 0:01:42]} 14. Rd1 {[%clk 0:01:33]}  Bxc5 {[%clk 0:01:08]} 15. Bxf6 {[%clk 0:01:03]}  gxf6 {[%clk 0:01:07]} 16. Qe4 {[%clk 0:01:03]}  f5 {[%clk 0:00:56]} 17. Qf4 {[%clk 0:00:59]}  Kh7 {[%clk 0:00:48]} 18. Bxc4 {[%clk 0:00:54]}  Bd6 {[%clk 0:00:48]} 19. Qf3 {[%clk 0:00:47]}  Rb8 {[%clk 0:00:39]} 20. Rd2 {[%clk 0:00:39]}  Qf6 {[%clk 0:00:30]} 21. O-O {[%clk 0:00:35]}  Qh4 {[%clk 0:00:22]} 22. g3 {[%clk 0:00:33]}  Qxc4 {[%clk 0:00:21]} 23. Rd4 {[%clk 0:00:31]}  Qc6 {[%clk 0:00:18]} 24. Qh5 {[%clk 0:00:28]}  Be5 {[%clk 0:00:15]} 25. Rh4 {[%clk 0:00:25]}  Bg7 {[%clk 0:00:14]} 26. e4 {[%clk 0:00:24]}  Rxb2 {[%clk 0:00:12]} 27. exf5 {[%clk 0:00:18]}  exf5 {[%clk 0:00:13]} 28. Ne2 {[%clk 0:00:16]}  Qg6 {[%clk 0:00:09]} 29. Qf3 {[%clk 0:00:16]}  Bb5 {[%clk 0:00:08]} 30. Nf4 {[%clk 0:00:16]}  Qg5 {[%clk 0:00:07]} 31. Re1 {[%clk 0:00:14]}  Rb8 {[%clk 0:00:04]} 32. Rh5 {[%clk 0:00:14]}  Qf6 {[%clk 0:00:03]} 33. Nd5 {[%clk 0:00:14]}  Qd6 {[%clk 0:00:03]} 34. Rxf5 {[%clk 0:00:13]}  Bc6 {[%clk 0:00:01]} 35. Qe4 {[%clk 0:00:11]} 1-0


[Site "https://www.chess.com"]

[Event "Titled Tuesday Blitz November 22 Early 2022"]
[White "Bortnyk, Olexandr"]
[Black "Ibarra Jerez, Jose Carlos"]
[WhiteFideId "14120828"]
[BlackFideId "2226332"]
[WhiteElo "2723"]
[BlackElo "2638"]
[Result "1-0"]
[Round "10"]
[TimeControl "180+1"]
[Date "2022.11.22"]
[WhiteClock "0:00:16"]
[BlackClock "0:00:05"]

1. e4 {[%clk 0:02:28]}  e6 {[%clk 0:02:59]} 2. d4 {[%clk 0:02:24]}  d5 {[%clk 0:03:00]} 3. Nc3 {[%clk 0:02:25]}  Nf6 {[%clk 0:03:00]} 4. Bg5 {[%clk 0:02:25]}  dxe4 {[%clk 0:02:59]} 5. Nxe4 {[%clk 0:02:25]}  Be7 {[%clk 0:02:57]} 6. Bxf6 {[%clk 0:02:26]}  gxf6 {[%clk 0:02:58]} 7. Nf3 {[%clk 0:02:23]}  f5 {[%clk 0:02:58]} 8. Ned2 {[%clk 0:02:22]}  c5 {[%clk 0:02:57]} 9. c3 {[%clk 0:02:23]}  Nc6 {[%clk 0:02:57]} 10. Bb5 {[%clk 0:02:23]}  cxd4 {[%clk 0:02:52]} 11. Nxd4 {[%clk 0:02:19]}  Bd7 {[%clk 0:02:47]} 12. Bxc6 {[%clk 0:02:19]}  bxc6 {[%clk 0:02:45]} 13. O-O {[%clk 0:02:19]}  c5 {[%clk 0:02:43]} 14. N4f3 {[%clk 0:02:20]}  Bf6 {[%clk 0:02:43]} 15. Nc4 {[%clk 0:02:17]}  O-O {[%clk 0:02:34]} 16. Nfe5 {[%clk 0:02:05]}  Bb5 {[%clk 0:02:32]} 17. a4 {[%clk 0:02:03]}  Ba6 {[%clk 0:02:28]} 18. Re1 {[%clk 0:02:00]}  Qxd1 {[%clk 0:02:25]} 19. Raxd1 {[%clk 0:01:57]}  Rfd8 {[%clk 0:02:20]} 20. f4 {[%clk 0:01:50]}  Rxd1 {[%clk 0:01:49]} 21. Rxd1 {[%clk 0:01:50]}  Rd8 {[%clk 0:01:49]} 22. Rxd8+ {[%clk 0:01:39]}  Bxd8 {[%clk 0:01:49]} 23. Nd6 {[%clk 0:01:40]}  f6 {[%clk 0:01:33]} 24. Nc6 {[%clk 0:01:09]}  Bc7 {[%clk 0:01:32]} 25. Nb5 {[%clk 0:00:55]}  Bxf4 {[%clk 0:01:31]} 26. Nbxa7 {[%clk 0:00:40]}  Be3+ {[%clk 0:01:30]} 27. Kh1 {[%clk 0:00:41]}  c4 {[%clk 0:01:18]} 28. Nb5 {[%clk 0:00:37]}  Bc1 {[%clk 0:01:13]} 29. Nc7 {[%clk 0:00:23]}  Bb7 {[%clk 0:01:09]} 30. Na5 {[%clk 0:00:23]}  Bd5 {[%clk 0:00:18]} 31. Nxd5 {[%clk 0:00:23]}  exd5 {[%clk 0:00:19]} 32. Nc6 {[%clk 0:00:24]}  Bxb2 {[%clk 0:00:19]} 33. a5 {[%clk 0:00:25]}  d4 {[%clk 0:00:19]} 34. a6 {[%clk 0:00:19]}  dxc3 {[%clk 0:00:11]} 35. Nd4 {[%clk 0:00:16]}  Ba3 {[%clk 0:00:05]} 36. a7 {[%clk 0:00:16]} 1-0


[Site "https://www.chess.com"]

[Event "Titled Tuesday Blitz November 22 Early 2022"]
[White "Chernov, Mikhail"]
[Black "Sanchez, Robert"]
[WhiteFideId "24143170"]
[BlackFideId "2034360"]
[WhiteElo "2113"]
[BlackElo "2308"]
[Result "0-1"]
[Round "10"]
[TimeControl "180+1"]
[Date "2022.11.23"]
[WhiteClock "0:00:08"]
[BlackClock "0:00:06"]

1. e4 {[%clk 0:03:00]}  d5 {[%clk 0:03:00]} 2. exd5 {[%clk 0:03:00]}  Qxd5 {[%clk 0:03:01]} 3. Nc3 {[%clk 0:03:01]}  Qe6+ {[%clk 0:03:01]} 4. Be2 {[%clk 0:02:59]}  Qg6 {[%clk 0:03:01]} 5. Nf3 {[%clk 0:02:59]}  Qxg2 {[%clk 0:03:01]} 6. Rg1 {[%clk 0:02:59]}  Qh3 {[%clk 0:03:01]} 7. d4 {[%clk 0:02:55]}  c6 {[%clk 0:02:58]} 8. Bf4 {[%clk 0:02:45]}  Qf5 {[%clk 0:02:54]} 9. Qd2 {[%clk 0:02:43]}  h6 {[%clk 0:02:43]} 10. O-O-O {[%clk 0:02:42]}  Nf6 {[%clk 0:02:43]} 11. Bd3 {[%clk 0:02:38]}  Qh5 {[%clk 0:02:41]} 12. Ne5 {[%clk 0:02:36]}  Bf5 {[%clk 0:02:37]} 13. Bc4 {[%clk 0:02:25]}  e6 {[%clk 0:02:30]} 14. d5 {[%clk 0:02:21]}  exd5 {[%clk 0:01:49]} 15. Nxd5 {[%clk 0:02:19]}  cxd5 {[%clk 0:01:45]} 16. Bb5+ {[%clk 0:02:17]}  Nbd7 {[%clk 0:01:42]} 17. Rge1 {[%clk 0:02:03]}  Be6 {[%clk 0:01:24]} 18. Nxd7 {[%clk 0:01:52]}  Nxd7 {[%clk 0:01:23]} 19. Re5 {[%clk 0:01:53]}  Qg4 {[%clk 0:01:03]} 20. h3 {[%clk 0:01:32]}  Qxh3 {[%clk 0:00:54]} 21. Qxd5 {[%clk 0:01:29]}  Be7 {[%clk 0:00:41]} 22. Rxe6 {[%clk 0:01:11]}  fxe6 {[%clk 0:00:35]} 23. Bxd7+ {[%clk 0:01:08]}  Kf8 {[%clk 0:00:32]} 24. Bxe6 {[%clk 0:01:07]}  Qh4 {[%clk 0:00:29]} 25. Be3 {[%clk 0:00:54]}  Rd8 {[%clk 0:00:28]} 26. Qf3+ {[%clk 0:00:48]}  Qf6 {[%clk 0:00:28]} 27. Rxd8+ {[%clk 0:00:46]}  Bxd8 {[%clk 0:00:27]} 28. Bc5+ {[%clk 0:00:47]}  Be7 {[%clk 0:00:27]} 29. Qd5 {[%clk 0:00:28]}  g5 {[%clk 0:00:21]} 30. Bd4 {[%clk 0:00:24]}  Qf4+ {[%clk 0:00:19]} 31. Kb1 {[%clk 0:00:24]}  Qh2 {[%clk 0:00:12]} 32. a3 {[%clk 0:00:22]}  Rh7 {[%clk 0:00:11]} 33. Qxb7 {[%clk 0:00:20]}  Qd6 {[%clk 0:00:10]} 34. Qf3+ {[%clk 0:00:17]}  Ke8 {[%clk 0:00:09]} 35. Qf5 {[%clk 0:00:08]}  Qxd4 {[%clk 0:00:07]} 36. Qxh7 {[%clk 0:00:07]}  Qd1+ {[%clk 0:00:06]} 37. Ka2 {[%clk 0:00:07]}  Qf3 {[%clk 0:00:06]} 38. Qxh6 {[%clk 0:00:04]}  Qf6 {[%clk 0:00:07]} 39. Qh5+ {[%clk 0:00:03]}  Kd8 {[%clk 0:00:07]} 40. Qg4 {[%clk 0:00:04]}  Bd6 {[%clk 0:00:06]} 41. Qc4 {[%clk 0:00:04]}  Ke7 {[%clk 0:00:06]} 42. Qc8 {[%clk 0:00:04]}  Qxe6+ {[%clk 0:00:06]} 43. Qxe6+ {[%clk 0:00:03]}  Kxe6 {[%clk 0:00:07]} 44. f3 {[%clk 0:00:02]}  Kf5 {[%clk 0:00:07]} 45. c4 {[%clk 0:00:03]}  Kf4 {[%clk 0:00:08]} 46. b4 {[%clk 0:00:04]}  Kxf3 {[%clk 0:00:08]} 47. c5 {[%clk 0:00:05]}  Bc7 {[%clk 0:00:09]} 48. a4 {[%clk 0:00:05]}  g4 {[%clk 0:00:09]} 49. a5 {[%clk 0:00:05]}  a6 {[%clk 0:00:09]} 50. b5 {[%clk 0:00:06]}  axb5 {[%clk 0:00:09]} 51. a6 {[%clk 0:00:07]}  Bb8 {[%clk 0:00:09]} 52. c6 {[%clk 0:00:08]}  g3 {[%clk 0:00:09]} 53. c7 {[%clk 0:00:07]}  Bxc7 {[%clk 0:00:08]} 54. a7 {[%clk 0:00:08]}  g2 {[%clk 0:00:08]} 55. a8=Q+ {[%clk 0:00:09]}  Kf2 {[%clk 0:00:07]} 56. Qa7+ {[%clk 0:00:09]}  Ke2 {[%clk 0:00:07]} 57. Qg1 {[%clk 0:00:08]}  Kf3 {[%clk 0:00:06]} 58. Kb3 {[%clk 0:00:09]}  Bg3 {[%clk 0:00:06]} 59. Qd1+ {[%clk 0:00:07]}  Kf2 {[%clk 0:00:06]} 60. Qd2+ {[%clk 0:00:08]}  Kf3 {[%clk 0:00:06]} 61. Qd1+ {[%clk 0:00:07]}  Kf2 {[%clk 0:00:06]} 62. Kc2 {[%clk 0:00:06]}  g1=Q {[%clk 0:00:05]} 63. Qxg1+ {[%clk 0:00:07]}  Kxg1 {[%clk 0:00:06]} 64. Kb3 {[%clk 0:00:07]}  Bd6 {[%clk 0:00:06]} 65. Kc3 {[%clk 0:00:08]}  Kf2 {[%clk 0:00:06]} 0-1


[Site "https://www.chess.com"]

[Event "Titled Tuesday Blitz November 22 Early 2022"]
[White "Chuemsakul, Sarocha"]
[Black "Fernandez Siles, Luis"]
[WhiteFideId "6203710"]
[BlackFideId "2209420"]
[WhiteElo "1686"]
[BlackElo "2186"]
[Result "1-0"]
[Round "10"]
[TimeControl "180+1"]
[Date "2022.11.23"]
[WhiteClock "0:00:02"]
[BlackClock "0:00:09"]

1. d4 {[%clk 0:02:55]}  Nf6 {[%clk 0:02:59]} 2. c4 {[%clk 0:02:55]}  g6 {[%clk 0:02:59]} 3. g3 {[%clk 0:02:55]}  Bg7 {[%clk 0:02:59]} 4. Bg2 {[%clk 0:02:55]}  O-O {[%clk 0:03:00]} 5. Nc3 {[%clk 0:02:56]}  d6 {[%clk 0:02:59]} 6. Nf3 {[%clk 0:02:56]}  c6 {[%clk 0:02:59]} 7. e4 {[%clk 0:02:54]}  Bg4 {[%clk 0:02:56]} 8. h3 {[%clk 0:02:54]}  Bxf3 {[%clk 0:02:55]} 9. Qxf3 {[%clk 0:02:54]}  e5 {[%clk 0:02:54]} 10. d5 {[%clk 0:02:51]}  cxd5 {[%clk 0:02:50]} 11. cxd5 {[%clk 0:02:51]}  Nbd7 {[%clk 0:02:35]} 12. g4 {[%clk 0:02:50]}  Ne8 {[%clk 0:02:27]} 13. h4 {[%clk 0:02:48]}  Qa5 {[%clk 0:02:09]} 14. h5 {[%clk 0:02:39]}  b5 {[%clk 0:02:08]} 15. g5 {[%clk 0:01:10]}  f5 {[%clk 0:01:53]} 16. hxg6 {[%clk 0:00:50]}  hxg6 {[%clk 0:01:51]} 17. Qh3 {[%clk 0:00:46]}  Rf7 {[%clk 0:00:57]} 18. exf5 {[%clk 0:00:37]}  Rxf5 {[%clk 0:00:51]} 19. Be4 {[%clk 0:00:30]}  b4 {[%clk 0:00:37]} 20. Ne2 {[%clk 0:00:29]}  Kf7 {[%clk 0:00:19]} 21. Bxf5 {[%clk 0:00:28]}  gxf5 {[%clk 0:00:19]} 22. Qxf5+ {[%clk 0:00:26]}  Ke7 {[%clk 0:00:20]} 23. Bd2 {[%clk 0:00:17]}  Rc8 {[%clk 0:00:20]} 24. Rh7 {[%clk 0:00:16]}  Kd8 {[%clk 0:00:20]} 25. Qg6 {[%clk 0:00:13]}  Rc5 {[%clk 0:00:18]} 26. Rxg7 {[%clk 0:00:13]}  Nxg7 {[%clk 0:00:18]} 27. Qxg7 {[%clk 0:00:14]}  Kc7 {[%clk 0:00:19]} 28. Qe7 {[%clk 0:00:12]}  Rxd5 {[%clk 0:00:19]} 29. g6 {[%clk 0:00:12]}  Qb5 {[%clk 0:00:16]} 30. Rc1+ {[%clk 0:00:09]}  Kb6 {[%clk 0:00:14]} 31. Qd8+ {[%clk 0:00:09]}  Ka6 {[%clk 0:00:14]} 32. Qc8+ {[%clk 0:00:08]}  Ka5 {[%clk 0:00:13]} 33. Qc7+ {[%clk 0:00:08]}  Nb6 {[%clk 0:00:13]} 34. g7 {[%clk 0:00:08]}  Qd3 {[%clk 0:00:09]} 35. Qxa7+ {[%clk 0:00:07]}  Kb5 {[%clk 0:00:09]} 36. a4+ {[%clk 0:00:06]}  bxa3 {[%clk 0:00:09]} 37. Qa5# {[%clk 0:00:02]} 1-0


[Site "https://www.chess.com"]

[Event "Titled Tuesday Blitz November 22 Early 2022"]
[White "Diaz Rosas, Julio Cesar"]
[Black "Weetik, Vjacheslav"]
[WhiteFideId "5105099"]
[BlackFideId "4153472"]
[WhiteElo "2246"]
[BlackElo "2469"]
[Result "0-1"]
[Round "10"]
[TimeControl "180+1"]
[Date "2022.11.23"]
[WhiteClock "0:00:12"]
[BlackClock "0:00:10"]

1. e4 {[%clk 0:02:55]}  c6 {[%clk 0:03:00]} 2. d4 {[%clk 0:02:53]}  d5 {[%clk 0:03:00]} 3. e5 {[%clk 0:02:54]}  Bf5 {[%clk 0:03:00]} 4. Nf3 {[%clk 0:02:54]}  e6 {[%clk 0:03:00]} 5. Be2 {[%clk 0:02:54]}  Nd7 {[%clk 0:03:01]} 6. O-O {[%clk 0:02:54]}  Bg6 {[%clk 0:03:01]} 7. Nbd2 {[%clk 0:02:54]}  Nh6 {[%clk 0:03:01]} 8. Nb3 {[%clk 0:02:53]}  Nf5 {[%clk 0:03:02]} 9. c4 {[%clk 0:02:49]}  dxc4 {[%clk 0:02:59]} 10. Bxc4 {[%clk 0:02:48]}  Nb6 {[%clk 0:03:00]} 11. Be2 {[%clk 0:02:48]}  Be7 {[%clk 0:02:58]} 12. a4 {[%clk 0:02:44]}  Nd5 {[%clk 0:02:54]} 13. a5 {[%clk 0:02:34]}  O-O {[%clk 0:02:49]} 14. Bd2 {[%clk 0:02:25]}  b6 {[%clk 0:02:31]} 15. Qc1 {[%clk 0:02:15]}  Rc8 {[%clk 0:02:24]} 16. axb6 {[%clk 0:02:07]}  axb6 {[%clk 0:02:23]} 17. Rd1 {[%clk 0:02:06]}  Qd7 {[%clk 0:02:14]} 18. Bg5 {[%clk 0:01:59]}  f6 {[%clk 0:02:09]} 19. exf6 {[%clk 0:01:59]}  gxf6 {[%clk 0:02:08]} 20. Bd2 {[%clk 0:01:54]}  Bd6 {[%clk 0:02:08]} 21. Re1 {[%clk 0:01:49]}  Kh8 {[%clk 0:02:03]} 22. Bc4 {[%clk 0:01:46]}  Rg8 {[%clk 0:02:02]} 23. Kh1 {[%clk 0:01:42]}  Bh5 {[%clk 0:01:59]} 24. Be2 {[%clk 0:01:21]}  Qc7 {[%clk 0:01:00]} 25. h3 {[%clk 0:01:11]}  Bg3 {[%clk 0:00:19]} 26. Rf1 {[%clk 0:00:41]}  Bxf2 {[%clk 0:00:19]} 27. Rxf2 {[%clk 0:00:42]}  Ng3+ {[%clk 0:00:19]} 28. Kg1 {[%clk 0:00:39]}  Nxe2+ {[%clk 0:00:20]} 29. Rxe2 {[%clk 0:00:40]}  Bxf3 {[%clk 0:00:21]} 30. Rf2 {[%clk 0:00:39]}  Qg3 {[%clk 0:00:16]} 31. Qf1 {[%clk 0:00:32]}  Bxg2 {[%clk 0:00:15]} 32. Rxg2 {[%clk 0:00:30]}  Qxb3 {[%clk 0:00:16]} 33. Bc3 {[%clk 0:00:22]}  Rxg2+ {[%clk 0:00:15]} 34. Kh1 {[%clk 0:00:15]}  Rg6 {[%clk 0:00:13]} 35. Qf3 {[%clk 0:00:15]}  Qc2 {[%clk 0:00:10]} 36. Re1 {[%clk 0:00:14]}  Rcg8 {[%clk 0:00:10]} 37. Rxe6 {[%clk 0:00:12]}  Rg1# {[%clk 0:00:10]} 0-1


[Site "https://www.chess.com"]

[Event "Titled Tuesday Blitz November 22 Early 2022"]
[White "Donskov, Anatoly"]
[Black "D`Arruda, Ricardo D."]
[WhiteFideId "24143413"]
[BlackFideId "100692"]
[WhiteElo "2219"]
[BlackElo "2511"]
[Result "0-1"]
[Round "10"]
[TimeControl "180+1"]
[Date "2022.11.23"]
[WhiteClock "0:00:07"]
[BlackClock "0:00:55"]

1. e4 {[%clk 0:03:00]}  c5 {[%clk 0:02:58]} 2. Nf3 {[%clk 0:03:00]}  Nc6 {[%clk 0:02:58]} 3. Nc3 {[%clk 0:03:00]}  e6 {[%clk 0:02:58]} 4. d4 {[%clk 0:02:59]}  cxd4 {[%clk 0:02:58]} 5. Nxd4 {[%clk 0:03:00]}  d6 {[%clk 0:02:57]} 6. f4 {[%clk 0:02:58]}  Nf6 {[%clk 0:02:56]} 7. Be3 {[%clk 0:02:54]}  Be7 {[%clk 0:02:53]} 8. Qf3 {[%clk 0:02:54]}  e5 {[%clk 0:02:42]} 9. Nf5 {[%clk 0:02:41]}  Bxf5 {[%clk 0:02:42]} 10. exf5 {[%clk 0:02:42]}  O-O {[%clk 0:02:37]} 11. O-O-O {[%clk 0:02:39]}  Qa5 {[%clk 0:02:35]} 12. g4 {[%clk 0:02:35]}  exf4 {[%clk 0:02:23]} 13. Bxf4 {[%clk 0:02:17]}  Ne5 {[%clk 0:02:22]} 14. Qg3 {[%clk 0:02:17]}  Rac8 {[%clk 0:02:16]} 15. Be2 {[%clk 0:02:12]}  Rxc3 {[%clk 0:02:00]} 16. Qxc3 {[%clk 0:02:09]}  Qxa2 {[%clk 0:02:00]} 17. Qa3 {[%clk 0:01:05]}  Qxa3 {[%clk 0:01:58]} 18. bxa3 {[%clk 0:01:06]}  Rc8 {[%clk 0:01:44]} 19. h3 {[%clk 0:00:49]}  h6 {[%clk 0:01:40]} 20. Kb2 {[%clk 0:00:44]}  Ne4 {[%clk 0:01:30]} 21. Bxe5 {[%clk 0:00:21]}  dxe5 {[%clk 0:01:28]} 22. Rd7 {[%clk 0:00:22]}  Bf6 {[%clk 0:01:24]} 23. Kb3 {[%clk 0:00:12]}  Nc5+ {[%clk 0:01:23]} 24. Kb4 {[%clk 0:00:10]}  Nxd7 {[%clk 0:01:23]} 25. c4 {[%clk 0:00:10]}  Be7+ {[%clk 0:01:22]} 26. Kc3 {[%clk 0:00:09]}  Bxa3 {[%clk 0:01:20]} 27. Rd1 {[%clk 0:00:10]}  Rc7 {[%clk 0:01:17]} 28. Bf3 {[%clk 0:00:10]}  Bc5 {[%clk 0:01:12]} 29. Bd5 {[%clk 0:00:09]}  Bd4+ {[%clk 0:01:12]} 30. Kd3 {[%clk 0:00:09]}  Nc5+ {[%clk 0:01:11]} 31. Ke2 {[%clk 0:00:09]}  a5 {[%clk 0:01:10]} 32. h4 {[%clk 0:00:09]}  Kf8 {[%clk 0:01:09]} 33. g5 {[%clk 0:00:09]}  hxg5 {[%clk 0:01:09]} 34. hxg5 {[%clk 0:00:10]}  Ke7 {[%clk 0:01:04]} 35. Rh1 {[%clk 0:00:10]}  a4 {[%clk 0:01:02]} 36. Rh7 {[%clk 0:00:09]}  e4 {[%clk 0:01:02]} 37. f6+ {[%clk 0:00:08]}  gxf6 {[%clk 0:00:59]} 38. Rxf7+ {[%clk 0:00:08]}  Kd6 {[%clk 0:00:59]} 39. g6 {[%clk 0:00:08]}  Rxf7 {[%clk 0:00:56]} 40. Bxf7 {[%clk 0:00:08]}  f5 {[%clk 0:00:56]} 41. Bd5 {[%clk 0:00:07]}  f4 {[%clk 0:00:55]} 0-1


[Site "https://www.chess.com"]

[Event "Titled Tuesday Blitz November 22 Early 2022"]
[White "Erdogdu, Mert"]
[Black "Aizpurua, Patrick Emilio"]
[WhiteFideId "6301495"]
[BlackFideId "6600522"]
[WhiteElo "2413"]
[BlackElo "2378"]
[Result "1-0"]
[Round "10"]
[TimeControl "180+1"]
[Date "2022.11.23"]
[WhiteClock "0:01:17"]
[BlackClock "0:00:20"]

1. e4 {[%clk 0:03:00]}  e5 {[%clk 0:02:57]} 2. Nf3 {[%clk 0:03:00]}  Nc6 {[%clk 0:02:58]} 3. Bc4 {[%clk 0:03:01]}  Bc5 {[%clk 0:02:58]} 4. d3 {[%clk 0:03:01]}  Nf6 {[%clk 0:02:58]} 5. O-O {[%clk 0:03:02]}  d6 {[%clk 0:02:57]} 6. c3 {[%clk 0:03:02]}  h6 {[%clk 0:02:56]} 7. a4 {[%clk 0:03:02]}  a6 {[%clk 0:02:57]} 8. Nbd2 {[%clk 0:03:01]}  O-O {[%clk 0:02:57]} 9. h3 {[%clk 0:03:00]}  Ba7 {[%clk 0:02:58]} 10. b4 {[%clk 0:02:59]}  Be6 {[%clk 0:02:58]} 11. Bxe6 {[%clk 0:02:59]}  fxe6 {[%clk 0:02:59]} 12. Nb3 {[%clk 0:03:00]}  Ne7 {[%clk 0:02:58]} 13. Be3 {[%clk 0:03:00]}  Ng6 {[%clk 0:02:57]} 14. c4 {[%clk 0:02:57]}  Qe8 {[%clk 0:02:54]} 15. c5 {[%clk 0:02:54]}  d5 {[%clk 0:02:48]} 16. Qc2 {[%clk 0:02:38]}  Nh5 {[%clk 0:02:28]} 17. Nh2 {[%clk 0:02:35]}  Nhf4 {[%clk 0:02:25]} 18. d4 {[%clk 0:02:28]}  exd4 {[%clk 0:02:03]} 19. Nxd4 {[%clk 0:02:24]}  c6 {[%clk 0:02:03]} 20. exd5 {[%clk 0:02:16]}  exd5 {[%clk 0:01:55]} 21. Rae1 {[%clk 0:02:15]}  Qd7 {[%clk 0:01:48]} 22. Ng4 {[%clk 0:02:03]}  h5 {[%clk 0:01:48]} 23. Bxf4 {[%clk 0:02:03]}  hxg4 {[%clk 0:01:11]} 24. Qxg6 {[%clk 0:01:58]}  Rxf4 {[%clk 0:01:11]} 25. Ne6 {[%clk 0:01:56]}  Rxb4 {[%clk 0:01:07]} 26. Ng5 {[%clk 0:01:44]}  Re4 {[%clk 0:00:44]} 27. Qh7+ {[%clk 0:01:33]}  Kf8 {[%clk 0:00:44]} 28. Nxe4 {[%clk 0:01:30]}  dxe4 {[%clk 0:00:42]} 29. Rxe4 {[%clk 0:01:21]}  Re8 {[%clk 0:00:22]} 30. Qh8+ {[%clk 0:01:20]}  Kf7 {[%clk 0:00:21]} 31. Rf4+ {[%clk 0:01:20]}  Kg6 {[%clk 0:00:20]} 32. Rxg4+ {[%clk 0:01:17]} 1-0


[Site "https://www.chess.com"]

[Event "Titled Tuesday Blitz November 22 Early 2022"]
[White "Farmani Anosheh, Armin"]
[Black "Kirillov, Dmitry"]
[WhiteFideId "24613240"]
[BlackFideId "34180572"]
[WhiteElo "2289"]
[BlackElo "2095"]
[Result "1-0"]
[Round "10"]
[TimeControl "180+1"]
[Date "2022.11.23"]
[WhiteClock "0:00:37"]
[BlackClock "0:00:02"]

1. d4 {[%clk 0:03:00]}  d5 {[%clk 0:02:57]} 2. c4 {[%clk 0:03:01]}  e6 {[%clk 0:02:57]} 3. Nf3 {[%clk 0:03:01]}  c6 {[%clk 0:02:57]} 4. Qc2 {[%clk 0:03:00]}  f5 {[%clk 0:02:56]} 5. g3 {[%clk 0:03:01]}  Nf6 {[%clk 0:02:56]} 6. Bg2 {[%clk 0:03:01]}  Bd6 {[%clk 0:02:56]} 7. O-O {[%clk 0:03:00]}  O-O {[%clk 0:02:53]} 8. Nbd2 {[%clk 0:03:01]}  Ne4 {[%clk 0:02:49]} 9. Ne1 {[%clk 0:03:00]}  Nd7 {[%clk 0:02:33]} 10. Ndf3 {[%clk 0:03:00]}  e5 {[%clk 0:02:17]} 11. dxe5 {[%clk 0:02:58]}  Nxe5 {[%clk 0:02:18]} 12. Nxe5 {[%clk 0:02:58]}  Bxe5 {[%clk 0:02:18]} 13. Nf3 {[%clk 0:02:57]}  Bf6 {[%clk 0:02:15]} 14. cxd5 {[%clk 0:02:55]}  cxd5 {[%clk 0:02:16]} 15. Rd1 {[%clk 0:02:55]}  Be6 {[%clk 0:02:09]} 16. Be3 {[%clk 0:02:51]}  Rc8 {[%clk 0:02:08]} 17. Qa4 {[%clk 0:02:52]}  a6 {[%clk 0:02:07]} 18. Bd4 {[%clk 0:02:48]}  Rc4 {[%clk 0:02:04]} 19. Qb3 {[%clk 0:02:40]}  b5 {[%clk 0:01:14]} 20. e3 {[%clk 0:02:38]}  Qd6 {[%clk 0:01:04]} 21. Bxf6 {[%clk 0:02:21]}  Nxf6 {[%clk 0:00:55]} 22. Nd4 {[%clk 0:02:12]}  Ne4 {[%clk 0:00:50]} 23. Rd3 {[%clk 0:01:38]}  Nc5 {[%clk 0:00:47]} 24. Qd1 {[%clk 0:01:36]}  Nxd3 {[%clk 0:00:44]} 25. Qxd3 {[%clk 0:01:37]}  Rfc8 {[%clk 0:00:44]} 26. h4 {[%clk 0:01:27]}  Bd7 {[%clk 0:00:27]} 27. Nb3 {[%clk 0:01:13]}  Be6 {[%clk 0:00:20]} 28. Nd4 {[%clk 0:01:13]}  Bf7 {[%clk 0:00:19]} 29. Nxf5 {[%clk 0:01:13]}  Qf6 {[%clk 0:00:18]} 30. Bxd5 {[%clk 0:01:09]}  Bxd5 {[%clk 0:00:17]} 31. Qxd5+ {[%clk 0:01:10]}  Kh8 {[%clk 0:00:17]} 32. e4 {[%clk 0:01:05]}  Qxb2 {[%clk 0:00:14]} 33. Rd1 {[%clk 0:01:05]}  Rc1 {[%clk 0:00:10]} 34. Kg2 {[%clk 0:01:04]}  Rxd1 {[%clk 0:00:10]} 35. Qxd1 {[%clk 0:01:05]}  Qe5 {[%clk 0:00:10]} 36. Qd7 {[%clk 0:01:05]}  Re8 {[%clk 0:00:09]} 37. f3 {[%clk 0:01:05]}  g6 {[%clk 0:00:08]} 38. Nh6 {[%clk 0:01:04]}  Qe7 {[%clk 0:00:07]} 39. Qd4+ {[%clk 0:01:03]}  Qg7 {[%clk 0:00:08]} 40. Nf7+ {[%clk 0:00:59]}  Kg8 {[%clk 0:00:08]} 41. Qxg7+ {[%clk 0:00:51]}  Kxg7 {[%clk 0:00:09]} 42. Nd6 {[%clk 0:00:51]}  Rd8 {[%clk 0:00:09]} 43. e5 {[%clk 0:00:52]}  b4 {[%clk 0:00:08]} 44. Kf2 {[%clk 0:00:51]}  a5 {[%clk 0:00:08]} 45. Ke3 {[%clk 0:00:52]}  Kf8 {[%clk 0:00:08]} 46. Kd4 {[%clk 0:00:52]}  Ke7 {[%clk 0:00:08]} 47. Kd5 {[%clk 0:00:49]}  a4 {[%clk 0:00:07]} 48. Kc4 {[%clk 0:00:49]}  Rb8 {[%clk 0:00:05]} 49. Ne4 {[%clk 0:00:46]}  b3 {[%clk 0:00:04]} 50. axb3 {[%clk 0:00:44]}  Rxb3 {[%clk 0:00:04]} 51. Nc3 {[%clk 0:00:45]}  Ke6 {[%clk 0:00:04]} 52. f4 {[%clk 0:00:45]}  Rb2 {[%clk 0:00:04]} 53. Nxa4 {[%clk 0:00:44]}  Rg2 {[%clk 0:00:04]} 54. Nc5+ {[%clk 0:00:43]}  Kf5 {[%clk 0:00:04]} 55. e6 {[%clk 0:00:42]}  Kf6 {[%clk 0:00:03]} 56. Kd5 {[%clk 0:00:40]}  Ke7 {[%clk 0:00:03]} 57. Ne4 {[%clk 0:00:39]}  h6 {[%clk 0:00:03]} 58. Ke5 {[%clk 0:00:39]}  Re2 {[%clk 0:00:03]} 59. f5 {[%clk 0:00:39]}  gxf5 {[%clk 0:00:02]} 60. Kxf5 {[%clk 0:00:40]}  Re3 {[%clk 0:00:02]} 61. Kf4 {[%clk 0:00:39]}  Re1 {[%clk 0:00:02]} 62. Kf5 {[%clk 0:00:38]}  Rf1+ {[%clk 0:00:03]} 63. Ke5 {[%clk 0:00:38]}  Re1 {[%clk 0:00:03]} 64. g4 {[%clk 0:00:37]}  Rg1 {[%clk 0:00:03]} 65. g5 {[%clk 0:00:38]}  hxg5 {[%clk 0:00:04]} 66. hxg5 {[%clk 0:00:37]}  Rg2 {[%clk 0:00:04]} 67. Kf5 {[%clk 0:00:38]}  Ke8 {[%clk 0:00:03]} 68. Kf6 {[%clk 0:00:36]}  Rg1 {[%clk 0:00:02]} 69. Nd6+ {[%clk 0:00:37]} 1-0


[Site "https://www.chess.com"]